fUST/lending_fUST_20260609
["ID","MTS","AMOUNT","RATE_DAILY","PERIOD"]
[424473444,1780945839000,-500.0,0.00013698,2]
[424473450,1780945839000,-636.46,0.00013698,2]
[424473471,1780945839000,-500.0,0.00013698,2]
[424473449,1780945839000,-639.08644557,0.00013698,2]
[424473452,1780945839000,-500.0,0.00013698,2]
[424473454,1780945839000,-500.0,0.00013698,2]
[424473448,1780945839000,-500.0,0.00013698,2]
[424473453,1780945839000,-500.0,0.00013698,2]
[424473455,1780945839000,-500.0,0.00013698,2]
[424473447,1780945839000,-500.0,0.00013698,2]
[424473456,1780945839000,-500.0,0.00013698,2]
[424473470,1780945839000,-500.0,0.00013698,2]
[424473457,1780945839000,-500.0,0.00013698,2]
[424473469,1780945839000,-500.0,0.00013698,2]
[424473468,1780945839000,-500.0,0.00013698,2]
[424473467,1780945839000,-500.0,0.00013698,2]
[424473466,1780945839000,-500.0,0.00013698,2]
[424473465,1780945839000,-500.0,0.00013698,2]
[424473461,1780945839000,-500.0,0.00013698,2]
[424473463,1780945839000,-500.0,0.00013698,2]
[424473462,1780945839000,-500.0,0.00013698,2]
[424473459,1780945839000,-500.0,0.00013698,2]
[424473460,1780945839000,-500.0,0.00013698,2]
[424473464,1780945839000,-500.0,0.00013698,2]
[424473458,1780945839000,-500.0,0.00013698,2]
[424473555,1780945840000,-151.5,0.00014378,2]
[424473557,1780945840000,-151.5,0.00014378,2]
[424473568,1780945840000,-500.0,0.00014378,2]
[424473572,1780945840000,-500.0,0.00014378,2]
[424473570,1780945840000,-500.0,0.00014378,2]
[424473550,1780945840000,-954.0,0.00014378,2]
[424473554,1780945840000,-968.65191694,0.00014378,2]
[424473552,1780945840000,-954.0,0.00014378,2]
[424473546,1780945840000,-954.0,0.00014378,2]
[424473541,1780945840000,-954.0,0.00014378,2]
[424473548,1780945840000,-954.0,0.00014378,2]
[424473566,1780945840000,-215.04220334,0.00014378,2]
[424473559,1780945840000,-151.5,0.00014378,2]
[424473593,1780945840000,-187.69323223,0.00014378,2]
[424473563,1780945840000,-151.5,0.00014378,2]
[424473565,1780945840000,-151.5,0.00014378,2]
[424473574,1780945840000,-500.0,0.00014378,2]
[424473576,1780945840000,-500.0,0.00014378,2]
[424473578,1780945840000,-500.0,0.00014378,2]
[424473581,1780945840000,-500.0,0.00014378,2]
[424473583,1780945840000,-500.0,0.00014378,2]
[424473580,1780945840000,-500.0,0.00014378,2]
[424473585,1780945840000,-277.71993064,0.00014378,2]
[424473589,1780945840000,-151.5,0.00014378,2]
[424473594,1780945840000,-205.69862653,0.00014378,2]
[424473598,1780945840000,-500.0,0.00014378,2]
[424473591,1780945840000,-151.5,0.00014378,2]
[424473537,1780945840000,-954.0,0.00014378,2]
[424473561,1780945840000,-151.5,0.00014378,2]
[424473539,1780945840000,-954.0,0.00014378,2]
[424473523,1780945840000,-954.0,0.00014378,2]
[424473536,1780945840000,-954.0,0.00014378,2]
[424473596,1780945840000,-292.52238375,0.00014378,2]
[424473505,1780945840000,-151.0,0.000137,2]
[424473507,1780945840000,-151.0,0.000137,2]
[424473506,1780945840000,-151.0,0.000137,2]
[424473508,1780945840000,-151.0,0.000137,2]
[424473510,1780945840000,-151.0,0.000137,2]
[424473511,1780945840000,-151.0,0.000137,2]
[424473512,1780945840000,-151.0,0.000137,2]
[424473518,1780945840000,-500.0,0.00014149,2]
[424473516,1780945840000,-151.0,0.000138,2]
[424473517,1780945840000,-294.59160206,0.00013806,2]
[424473515,1780945840000,-151.0,0.000137,2]
[424473514,1780945840000,-151.0,0.000137,2]
[424473513,1780945840000,-151.0,0.000137,2]
[424473520,1780945840000,-537.658,0.00014174,2]
[424473519,1780945840000,-570.09327643,0.00014157,2]
[424473522,1780945840000,-954.0,0.00014378,2]
[424473524,1780945840000,-954.0,0.00014378,2]
[424473526,1780945840000,-954.0,0.00014378,2]
[424473530,1780945840000,-954.0,0.00014378,2]
[424473532,1780945840000,-954.0,0.00014378,2]
[424473528,1780945840000,-954.0,0.00014378,2]
[424473529,1780945840000,-954.0,0.00014378,2]
[424473525,1780945840000,-954.0,0.00014378,2]
[424473531,1780945840000,-954.0,0.00014378,2]
[424473527,1780945840000,-954.0,0.00014378,2]
[424473533,1780945840000,-954.0,0.00014378,2]
[424473535,1780945840000,-954.0,0.00014378,2]
[424473534,1780945840000,-954.0,0.00014378,2]
[424473538,1780945840000,-954.0,0.00014378,2]
[424473587,1780945840000,-164.02470756,0.00014378,2]
[424473603,1780945840000,-1730.07503557,0.00014395,2]
[424473600,1780945840000,-349.70006729,0.00014378,2]
[424473669,1780945840000,-798.10057432,0.000153,2]
[424473673,1780945840000,-798.10057432,0.000155,2]
[424473671,1780945840000,-9289.52991695,0.000154,2]
[424473675,1780945840000,-9289.52991695,0.000155,2]
[424473677,1780945840000,-798.10057432,0.000156,2]
[424473678,1780945840000,-9289.52991695,0.000157,2]
[424473692,1780945840000,-151.0,0.000158,2]
[424473694,1780945840000,-151.0,0.000158,2]
[424473696,1780945840000,-151.0,0.000158,2]
[424473682,1780945840000,-481.069879,0.000157,2]
[424473680,1780945840000,-481.069879,0.000157,2]
[424473700,1780945840000,-151.0,0.000158,2]
[424473698,1780945840000,-196.483945,0.000158,2]
[424473690,1780945840000,-151.282987,0.000158,2]
[424473684,1780945840000,-481.069879,0.000157,2]
[424473686,1780945840000,-481.069879,0.000157,2]
[424473688,1780945840000,-9289.52991695,0.000158,2]
[424473702,1780945840000,-1000.0,0.00015896,2]
[424473704,1780945840000,-244.0,0.00015896,2]
[424473712,1780945840000,-768.57031478,0.00016086,2]
[424473714,1780945840000,-9289.52991695,0.000161,2]
[424473719,1780945840000,-9289.52991695,0.000163,2]
[424473723,1780945840000,-500.38530576,0.00016438,2]
[424473718,1780945840000,-151.0,0.00016158,2]
[424473710,1780945840000,-968.784237,0.00016,2]
[424473708,1780945840000,-9289.52991695,0.00016,2]
[424473721,1780945840000,-18390.387648,0.000164,2]
[424473602,1780945840000,-151.5,0.00014378,2]
[424473706,1780945840000,-3115.0,0.00016,2]
[424473667,1780945840000,-1000.0,0.00015248,5]
[424473663,1780945840000,-336.67611664,0.00015212,2]
[424473716,1780945840000,-995.0,0.000161,2]
[424473665,1780945840000,-890.77074443,0.00015212,2]
[424473661,1780945840000,-3141.35361617,0.000152,2]
[424473609,1780945840000,-3625.0,0.00014688,2]
[424473624,1780945840000,-417.15472785,0.00014908,2]
[424473607,1780945840000,-1000.0,0.00014451,2]
[424473623,1780945840000,-160.0,0.00014908,2]
[424473611,1780945840000,-685.666,0.00014688,2]
[424473613,1780945840000,-186.0,0.00014688,2]
[424473615,1780945840000,-444.0,0.00014688,2]
[424473617,1780945840000,-505.74714309,0.00014697,2]
[424473619,1780945840000,-9289.52991695,0.000149,2]
[424473621,1780945840000,-276.06769528,0.000149,2]
[424473628,1780945840000,-168.61110482,0.0001497,2]
[424473626,1780945840000,-160.0,0.00014909,2]
[424473632,1780945840000,-454.42618133,0.00015,2]
[424473605,1780945840000,-22987.984559,0.000144,2]
[424473630,1780945840000,-16110.79391898,0.00015,2]
[424473656,1780945840000,-798.10057432,0.000152,2]
[424473658,1780945840000,-6148.17630078,0.000152,2]
[424473654,1780945840000,-5840.08419497,0.00015196,2]
[424473651,1780945840000,-9289.52991695,0.000151,2]
[424473634,1780945840000,-3838.34544526,0.00015,2]
[424473647,1780945840000,-2208.0,0.00015061,2]
[424473653,1780945840000,-2491.30805121,0.00015181,2]
[424473643,1780945840000,-1416.0,0.00015061,2]
[424473641,1780945840000,-150.0,0.00015061,2]
[424473640,1780945840000,-150.0,0.00015061,2]
[424473636,1780945840000,-798.10057432,0.00015,2]
[424473638,1780945840000,-3106.80311441,0.00015,2]
[424473649,1780945840000,-177.705034,0.00015068,2]
[424473645,1780945840000,-1838.0,0.00015061,2]
[424473814,1780945841000,-500.38900106,0.00016438,2]
[424473824,1780945841000,-500.0,0.00016438,2]
[424473807,1780945841000,-500.50896992,0.00016438,2]
[424473811,1780945841000,-500.0,0.00016438,2]
[424473797,1780945841000,-500.0,0.00016438,2]
[424473786,1780945841000,-500.21586336,0.00016438,2]
[424473795,1780945841000,-500.0,0.00016438,2]
[424473789,1780945841000,-500.89087328,0.00016438,2]
[424473791,1780945841000,-500.0,0.00016438,2]
[424473793,1780945841000,-500.74882856,0.00016438,2]
[424473799,1780945841000,-500.0,0.00016438,2]
[424473802,1780945841000,-500.0,0.00016438,2]
[424473826,1780945841000,-500.0,0.00016438,2]
[424473828,1780945841000,-500.53079525,0.00016438,2]
[424473804,1780945841000,-500.33537483,0.00016438,2]
[424473822,1780945841000,-500.85343734,0.00016438,2]
[424473818,1780945841000,-500.0,0.00016438,2]
[424473820,1780945841000,-500.0,0.00016438,2]
[424473816,1780945841000,-500.0,0.00016438,2]
[424473812,1780945841000,-500.0,0.00016438,2]
[424473809,1780945841000,-500.0,0.00016438,2]
[424473846,1780945841000,-500.0,0.00016438,2]
[424473844,1780945841000,-500.0,0.00016438,2]
[424473833,1780945841000,-500.0,0.00016438,2]
[424473830,1780945841000,-555.93006521,0.00016438,2]
[424473847,1780945841000,-500.0,0.00016438,2]
[424473788,1780945841000,-500.0,0.00016438,2]
[424473805,1780945841000,-500.0,0.00016438,2]
[424473784,1780945841000,-500.0,0.00016438,2]
[424473754,1780945841000,-500.0,0.00016438,2]
[424473779,1780945841000,-500.0,0.00016438,2]
[424473725,1780945841000,-500.92166765,0.00016438,2]
[424473727,1780945841000,-500.78155975,0.00016438,2]
[424473730,1780945841000,-632.91,0.00016438,2]
[424473728,1780945841000,-500.24390978,0.00016438,2]
[424473732,1780945841000,-500.30859073,0.00016438,2]
[424473734,1780945841000,-500.0,0.00016438,2]
[424473736,1780945841000,-557.97,0.00016438,2]
[424473738,1780945841000,-500.60141817,0.00016438,2]
[424473839,1780945841000,-499.74278306,0.00016438,2]
[424473742,1780945841000,-500.62546245,0.00016438,2]
[424473744,1780945841000,-500.64568169,0.00016438,2]
[424473752,1780945841000,-500.0,0.00016438,2]
[424473750,1780945841000,-500.53092696,0.00016438,2]
[424473782,1780945841000,-500.0,0.00016438,2]
[424473748,1780945841000,-500.50119581,0.00016438,2]
[424473756,1780945841000,-500.0,0.00016438,2]
[424473769,1780945841000,-500.0,0.00016438,2]
[424473760,1780945841000,-500.63658749,0.00016438,2]
[424473758,1780945841000,-555.4,0.00016438,2]
[424473773,1780945841000,-500.0,0.00016438,2]
[424473768,1780945841000,-500.0,0.00016438,2]
[424473777,1780945841000,-500.50851568,0.00016438,2]
[424473762,1780945841000,-500.0,0.00016438,2]
[424473764,1780945841000,-500.78155558,0.00016438,2]
[424473766,1780945841000,-500.0,0.00016438,2]
[424473775,1780945841000,-500.0,0.00016438,2]
[424473771,1780945841000,-500.0,0.00016438,2]
[424473780,1780945841000,-500.0,0.00016438,2]
[424473746,1780945841000,-500.0,0.00016438,2]
[424473835,1780945841000,-500.73724618,0.00016438,2]
[424473740,1780945841000,-500.0,0.00016438,2]
[424473837,1780945841000,-500.0,0.00016438,2]
[424473909,1780945841000,-500.43705321,0.00016438,2]
[424473911,1780945841000,-500.0,0.00016438,2]
[424473913,1780945841000,-500.0,0.00016438,2]
[424473915,1780945841000,-500.43800929,0.00016438,2]
[424473907,1780945841000,-500.0,0.00016438,2]
[424473918,1780945841000,-500.0,0.00016438,2]
[424473927,1780945841000,-500.0,0.00016438,2]
[424473917,1780945841000,-500.0,0.00016438,2]
[424473922,1780945841000,-500.0,0.00016438,2]
[424473920,1780945841000,-562.89426453,0.00016438,2]
[424473924,1780945841000,-500.0,0.00016438,2]
[424473929,1780945841000,-500.0,0.00016438,2]
[424473937,1780945841000,-500.0,0.00016438,2]
[424473905,1780945841000,-500.0,0.00016438,2]
[424473949,1780945841000,-500.0,0.00016438,2]
[424473935,1780945841000,-500.0,0.00016438,2]
[424473945,1780945841000,-500.0,0.00016438,2]
[424473933,1780945841000,-500.0,0.00016438,2]
[424473947,1780945841000,-500.73000652,0.00016438,2]
[424473951,1780945841000,-500.0,0.00016438,2]
[424473954,1780945841000,-500.0,0.00016438,2]
[424473956,1780945841000,-151.0,0.00016438,2]
[424473958,1780945841000,-500.0,0.00016438,2]
[424473961,1780945841000,-151.0,0.00016438,2]
[424473960,1780945841000,-151.0,0.00016438,2]
[424473965,1780945841000,-151.0,0.00016438,2]
[424473963,1780945841000,-500.43236337,0.00016438,2]
[424473831,1780945841000,-368.63982151,0.00016438,2]
[424473939,1780945841000,-500.0,0.00016438,2]
[424473903,1780945841000,-500.0,0.00016438,2]
[424473931,1780945841000,-500.0,0.00016438,2]
[424473894,1780945841000,-500.0,0.00016438,2]
[424473851,1780945841000,-500.69,0.00016438,2]
[424473896,1780945841000,-500.68530428,0.00016438,2]
[424473840,1780945841000,-500.0,0.00016438,2]
[424473849,1780945841000,-500.0,0.00016438,2]
[424473842,1780945841000,-500.0,0.00016438,2]
[424473853,1780945841000,-345.20687713,0.00016438,2]
[424473866,1780945841000,-500.45286844,0.00016438,2]
[424473855,1780945841000,-500.0,0.00016438,2]
[424473864,1780945841000,-500.0,0.00016438,2]
[424473859,1780945841000,-500.0,0.00016438,2]
[424473860,1780945841000,-500.0,0.00016438,2]
[424473862,1780945841000,-501.31890171,0.00016438,2]
[424473874,1780945841000,-500.0,0.00016438,2]
[424473868,1780945841000,-500.0,0.00016438,2]
[424473857,1780945841000,-500.0,0.00016438,2]
[424473870,1780945841000,-500.0,0.00016438,2]
[424473900,1780945841000,-610.46398197,0.00016438,2]
[424473876,1780945841000,-500.0,0.00016438,2]
[424473901,1780945841000,-500.0,0.00016438,2]
[424473892,1780945841000,-500.38436816,0.00016438,2]
[424473890,1780945841000,-529.46,0.00016438,2]
[424473884,1780945841000,-500.0,0.00016438,2]
[424473886,1780945841000,-500.0,0.00016438,2]
[424473898,1780945841000,-500.0,0.00016438,2]
[424473882,1780945841000,-500.52445622,0.00016438,2]
[424473880,1780945841000,-507.53,0.00016438,2]
[424473878,1780945841000,-500.0,0.00016438,2]
[424473872,1780945841000,-500.0,0.00016438,2]
[424473888,1780945841000,-500.0,0.00016438,2]
[424474051,1780945842000,-500.0,0.00016438,2]
[424474054,1780945842000,-500.0,0.00016438,2]
[424474052,1780945842000,-500.0,0.00016438,2]
[424474026,1780945842000,-500.0,0.00016438,2]
[424474049,1780945842000,-500.0,0.00016438,2]
[424474043,1780945842000,-500.0,0.00016438,2]
[424474038,1780945842000,-500.0,0.00016438,2]
[424474040,1780945842000,-500.0,0.00016438,2]
[424474047,1780945842000,-500.0,0.00016438,2]
[424474041,1780945842000,-500.0,0.00016438,2]
[424474036,1780945842000,-500.82801397,0.00016438,2]
[424474058,1780945842000,-500.0,0.00016438,2]
[424474045,1780945842000,-500.0,0.00016438,2]
[424474060,1780945842000,-500.0,0.00016438,2]
[424474084,1780945842000,-500.0,0.00016438,2]
[424474062,1780945842000,-500.53546583,0.00016438,2]
[424474071,1780945842000,-500.2446355,0.00016438,2]
[424474073,1780945842000,-500.0,0.00016438,2]
[424474066,1780945842000,-500.0,0.00016438,2]
[424474064,1780945842000,-500.0,0.00016438,2]
[424474069,1780945842000,-500.0,0.00016438,2]
[424474068,1780945842000,-500.0,0.00016438,2]
[424474075,1780945842000,-500.0,0.00016438,2]
[424474079,1780945842000,-500.37558678,0.00016438,2]
[424474083,1780945842000,-500.0,0.00016438,2]
[424474081,1780945842000,-500.0,0.00016438,2]
[424474077,1780945842000,-500.0,0.00016438,2]
[424474032,1780945842000,-500.33488337,0.00016438,2]
[424474056,1780945842000,-541.79405749,0.00016438,2]
[424474034,1780945842000,-500.75319264,0.00016438,2]
[424473969,1780945842000,-151.0,0.00016438,2]
[424474028,1780945842000,-151.0,0.00016438,2]
[424473967,1780945842000,-500.0,0.00016438,2]
[424474093,1780945842000,-500.0,0.00016438,2]
[424473974,1780945842000,-500.0,0.00016438,2]
[424473973,1780945842000,-500.0,0.00016438,2]
[424473971,1780945842000,-151.0,0.00016438,2]
[424473981,1780945842000,-500.0,0.00016438,2]
[424473984,1780945842000,-500.5738159,0.00016438,2]
[424473979,1780945842000,-500.39341769,0.00016438,2]
[424473983,1780945842000,-500.0,0.00016438,2]
[424473994,1780945842000,-500.55425264,0.00016438,2]
[424473989,1780945842000,-500.6742392,0.00016438,2]
[424473987,1780945842000,-500.0,0.00016438,2]
[424473977,1780945842000,-500.0,0.00016438,2]
[424473991,1780945842000,-500.0,0.00016438,2]
[424473992,1780945842000,-500.0,0.00016438,2]
[424474004,1780945842000,-500.0,0.00016438,2]
[424474013,1780945842000,-500.62865103,0.00016438,2]
[424474009,1780945842000,-500.0,0.00016438,2]
[424474010,1780945842000,-500.66893004,0.00016438,2]
[424473998,1780945842000,-500.0,0.00016438,2]
[424474006,1780945842000,-500.0,0.00016438,2]
[424474000,1780945842000,-500.63822587,0.00016438,2]
[424474016,1780945842000,-500.0,0.00016438,2]
[424474014,1780945842000,-500.0,0.00016438,2]
[424474002,1780945842000,-500.0,0.00016438,2]
[424474019,1780945842000,-500.51125556,0.00016438,2]
[424474020,1780945842000,-500.0,0.00016438,2]
[424474024,1780945842000,-500.37062615,0.00016438,2]
[424474022,1780945842000,-500.46736332,0.00016438,2]
[424474030,1780945842000,-153.446093,0.00016438,2]
[424474090,1780945842000,-501.01471661,0.00016438,2]
[424473996,1780945842000,-500.0,0.00016438,2]
[424474092,1780945842000,-500.0,0.00016438,2]
[424474159,1780945842000,-500.75324076,0.00016438,2]
[424474152,1780945842000,-500.0,0.00016438,2]
[424474172,1780945842000,-500.0,0.00016438,2]
[424474170,1780945842000,-500.0,0.00016438,2]
[424474174,1780945842000,-445.37470505,0.00016438,2]
[424474165,1780945842000,-500.53846307,0.00016438,2]
[424474167,1780945842000,-500.39714735,0.00016438,2]
[424474162,1780945842000,-500.0,0.00016438,2]
[424474169,1780945842000,-500.0,0.00016438,2]
[424474176,1780945842000,-542.83,0.00016438,2]
[424474178,1780945842000,-500.0,0.00016438,2]
[424474180,1780945842000,-500.11761422,0.00016438,2]
[424474181,1780945842000,-500.0,0.00016438,2]
[424474183,1780945842000,-500.0,0.00016438,2]
[424474186,1780945842000,-500.0,0.00016438,2]
[424474189,1780945842000,-500.79665961,0.00016438,2]
[424474191,1780945842000,-500.0,0.00016438,2]
[424474202,1780945842000,-500.44334015,0.00016438,2]
[424474195,1780945842000,-500.0,0.00016438,2]
[424474198,1780945842000,-500.52514145,0.00016438,2]
[424474194,1780945842000,-502.47,0.00016438,2]
[424474200,1780945842000,-690.01,0.00016438,2]
[424474204,1780945842000,-632.82,0.00016438,2]
[424474207,1780945842000,-640.08,0.00016438,2]
[424474209,1780945842000,-500.0,0.00016438,2]
[424474205,1780945842000,-500.47082363,0.00016438,2]
[424474211,1780945842000,-500.0,0.00016438,2]
[424474214,1780945842000,-670.35,0.00016438,2]
[424474086,1780945842000,-500.0,0.00016438,2]
[424474154,1780945842000,-589.26627358,0.00016438,2]
[424474156,1780945842000,-500.0,0.00016438,2]
[424474212,1780945842000,-500.0,0.00016438,2]
[424474147,1780945842000,-500.3414234,0.00016438,2]
[424474150,1780945842000,-500.74813456,0.00016438,2]
[424474095,1780945842000,-500.0,0.00016438,2]
[424474097,1780945842000,-500.0,0.00016438,2]
[424474099,1780945842000,-500.0,0.00016438,2]
[424474104,1780945842000,-500.0,0.00016438,2]
[424474102,1780945842000,-500.0,0.00016438,2]
[424474111,1780945842000,-500.0,0.00016438,2]
[424474120,1780945842000,-500.0,0.00016438,2]
[424474101,1780945842000,-500.0,0.00016438,2]
[424474106,1780945842000,-500.0,0.00016438,2]
[424474108,1780945842000,-575.66726176,0.00016438,2]
[424474110,1780945842000,-500.0,0.00016438,2]
[424474113,1780945842000,-500.0,0.00016438,2]
[424474115,1780945842000,-500.0,0.00016438,2]
[424474117,1780945842000,-500.0,0.00016438,2]
[424474088,1780945842000,-538.17153644,0.00016438,2]
[424474124,1780945842000,-500.0,0.00016438,2]
[424474119,1780945842000,-500.0,0.00016438,2]
[424474149,1780945842000,-500.0,0.00016438,2]
[424474136,1780945842000,-500.74760298,0.00016438,2]
[424474140,1780945842000,-500.52549252,0.00016438,2]
[424474143,1780945842000,-500.0,0.00016438,2]
[424474129,1780945842000,-648.98378308,0.00016438,2]
[424474138,1780945842000,-500.0,0.00016438,2]
[424474132,1780945842000,-500.0,0.00016438,2]
[424474134,1780945842000,-500.40236262,0.00016438,2]
[424474128,1780945842000,-500.72551075,0.00016438,2]
[424474126,1780945842000,-500.0,0.00016438,2]
[424474122,1780945842000,-500.0,0.00016438,2]
[424474142,1780945842000,-500.0,0.00016438,2]
[424474145,1780945842000,-500.0,0.00016438,2]
[424474261,1780945843000,-154.95,0.00016438,2]
[424474268,1780945843000,-151.0,0.00016438,2]
[424474262,1780945843000,-151.0,0.00016438,2]
[424474263,1780945843000,-151.0,0.00016438,2]
[424474260,1780945843000,-155.91741083,0.00016438,2]
[424474258,1780945843000,-500.0,0.00016438,2]
[424474267,1780945843000,-151.0,0.00016438,2]
[424474269,1780945843000,-151.0,0.00016438,2]
[424474259,1780945843000,-500.0,0.00016438,2]
[424474270,1780945843000,-151.623449,0.00016438,2]
[424474254,1780945843000,-500.0,0.00016438,2]
[424474265,1780945843000,-151.0,0.00016438,2]
[424474266,1780945843000,-151.0,0.00016438,2]
[424474275,1780945843000,-222.53695681,0.00016504,3]
[424474271,1780945843000,-151.0,0.00016438,2]
[424474273,1780945843000,-151.0,0.00016438,2]
[424474272,1780945843000,-151.0,0.00016438,2]
[424474274,1780945843000,-277.343294,0.00016438,2]
[424474276,1780945843000,-201.799472,0.00016646,2]
[424474277,1780945843000,-160.0,0.00016712,2]
[424474278,1780945843000,-234.32,0.00016712,2]
[424474282,1780945843000,-500.0,0.00016712,2]
[424474287,1780945843000,-500.0,0.00016712,2]
[424474284,1780945843000,-500.0,0.00016712,2]
[424474283,1780945843000,-189.09,0.00016712,2]
[424474255,1780945843000,-400.84886318,0.00016438,2]
[424474286,1780945843000,-500.0,0.00016712,2]
[424474264,1780945843000,-151.0,0.00016438,2]
[424474249,1780945843000,-4835.86,0.00016438,2]
[424474236,1780945843000,-500.0,0.00016438,2]
[424474246,1780945843000,-481.069879,0.00016438,2]
[424474280,1780945843000,-500.0,0.00016712,2]
[424474228,1780945843000,-500.48439041,0.00016438,2]
[424474216,1780945843000,-500.0,0.00016438,2]
[424474226,1780945843000,-500.0,0.00016438,2]
[424474220,1780945843000,-500.0,0.00016438,2]
[424474224,1780945843000,-500.0,0.00016438,2]
[424474222,1780945843000,-221.45265019,0.00016438,2]
[424474218,1780945843000,-508.79,0.00016438,2]
[424474230,1780945843000,-500.0,0.00016438,2]
[424474235,1780945843000,-500.0,0.00016438,2]
[424474238,1780945843000,-500.0,0.00016438,2]
[424474234,1780945843000,-500.0,0.00016438,2]
[424474240,1780945843000,-500.0,0.00016438,2]
[424474245,1780945843000,-481.069879,0.00016438,2]
[424474243,1780945843000,-481.069879,0.00016438,2]
[424474233,1780945843000,-500.0,0.00016438,2]
[424474242,1780945843000,-481.069879,0.00016438,2]
[424474244,1780945843000,-481.069879,0.00016438,2]
[424474232,1780945843000,-538.51,0.00016438,2]
[424474231,1780945843000,-500.0,0.00016438,2]
[424474250,1780945843000,-481.069879,0.00016438,2]
[424474257,1780945843000,-500.95627296,0.00016438,2]
[424474253,1780945843000,-500.0,0.00016438,2]
[424474252,1780945843000,-500.0,0.00016438,2]
[424474247,1780945843000,-481.069879,0.00016438,2]
[424474251,1780945843000,-500.0,0.00016438,2]
[424474248,1780945843000,-481.069879,0.00016438,2]
[424474256,1780945843000,-500.0,0.00016438,2]
[424474241,1780945843000,-500.0,0.00016438,2]
[424474281,1780945843000,-500.0,0.00016712,2]
[424474293,1780945843000,-247.16815,0.00016712,2]
[424474285,1780945843000,-415.09,0.00016712,2]
[424474322,1780945843000,-500.0,0.00016712,2]
[424474317,1780945843000,-500.0,0.00016712,2]
[424474323,1780945843000,-500.49223076,0.00016712,2]
[424474327,1780945843000,-529.46,0.00016712,2]
[424474328,1780945843000,-500.8430236,0.00016712,2]
[424474325,1780945843000,-445.74295706,0.00016712,2]
[424474326,1780945843000,-459.37393271,0.00016712,2]
[424474324,1780945843000,-500.0,0.00016712,2]
[424474339,1780945843000,-500.0,0.00016712,2]
[424474341,1780945843000,-500.0,0.00016712,2]
[424474330,1780945843000,-500.0,0.00016712,2]
[424474329,1780945843000,-500.0,0.00016712,2]
[424474340,1780945843000,-646.21671608,0.00016712,2]
[424474332,1780945843000,-500.0,0.00016712,2]
[424474333,1780945843000,-500.0,0.00016712,2]
[424474331,1780945843000,-500.0,0.00016712,2]
[424474336,1780945843000,-500.0,0.00016712,2]
[424474334,1780945843000,-500.63532445,0.00016712,2]
[424474335,1780945843000,-500.98055824,0.00016712,2]
[424474338,1780945843000,-500.0,0.00016712,2]
[424474337,1780945843000,-500.0,0.00016712,2]
[424474279,1780945843000,-500.0,0.00016712,2]
[424474342,1780945843000,-500.75362375,0.00016712,2]
[424474346,1780945843000,-500.0,0.00016712,2]
[424474347,1780945843000,-500.0,0.00016712,2]
[424474344,1780945843000,-500.82664573,0.00016712,2]
[424474343,1780945843000,-500.0,0.00016712,2]
[424474319,1780945843000,-500.0,0.00016712,2]
[424474320,1780945843000,-500.0,0.00016712,2]
[424474345,1780945843000,-500.42077715,0.00016712,2]
[424474321,1780945843000,-619.73162852,0.00016712,2]